bitfinex-derivatives/quotes_BTCF0:USTF0_20250508
["timestamp","ask_amount","ask_price","bid_price","bid_amount"]
[1746734499264,0.3903248,101500.0,101490.0,0.23023825]
[1746734499769,0.94407709,101500.0,101490.0,0.2456394]
[1746734499962,0.94407709,101500.0,101490.0,0.23023825]
[1746734500667,0.94407709,101500.0,101490.0,0.03320415]
[1746734500868,0.1970341,101490.0,101480.0,0.7978422]
[1746734501169,0.2611341,101490.0,101480.0,0.98124422]
[1746734501371,0.2611341,101490.0,101480.0,0.98384921]
[1746734501771,0.2611341,101490.0,101480.0,0.99489992]
[1746734502165,0.45408639,101490.0,101480.0,0.91563722]
[1746734502362,0.2611341,101490.0,101480.0,0.91564226]
[1746734502562,0.2611341,101490.0,101480.0,0.91564237]
[1746734502761,0.2611341,101490.0,101480.0,0.91564288]
[1746734502961,0.2611341,101490.0,101480.0,1.18714288]
[1746734503170,0.2611341,101490.0,101480.0,1.33714288]
[1746734503374,0.2611341,101490.0,101480.0,0.94714288]
[1746734503582,0.2611341,101490.0,101480.0,0.94714641]
[1746734504075,0.2611341,101490.0,101480.0,0.94712019]
[1746734504962,0.45130755,101490.0,101480.0,0.94712019]
[1746734505362,0.64425984,101490.0,101480.0,0.62006069]
[1746734505573,0.64425984,101490.0,101480.0,0.58826868]
[1746734505772,0.64425984,101490.0,101480.0,0.78532297]
[1746734505961,0.64425984,101490.0,101480.0,0.78532306]
[1746734506166,0.64425984,101490.0,101480.0,0.61732266]
[1746734506374,0.45130755,101490.0,101480.0,0.61732266]
[1746734506674,0.64425984,101490.0,101480.0,0.61732307]
[1746734506876,0.45130755,101490.0,101480.0,0.61732307]
[1746734507067,0.64425984,101490.0,101480.0,0.61732307]
[1746734507770,0.64425984,101490.0,101480.0,0.03292527]
[1746734507967,0.1970536,101480.0,101470.0,0.6442]
[1746734508172,0.48460589,101480.0,101470.0,0.841273]
[1746734508375,0.48460589,101480.0,101470.0,0.810953]
[1746734508577,0.48460589,101480.0,101470.0,0.778453]
[1746734510278,0.2916536,101480.0,101470.0,0.620773]
[1746734510675,0.48460589,101480.0,101470.0,0.620773]
[1746734511272,0.2916536,101480.0,101470.0,0.620773]
[1746734511776,0.1970536,101480.0,101470.0,0.86156232]
[1746734512076,0.1970536,101480.0,101470.0,1.06256232]
[1746734512580,0.1970536,101480.0,101470.0,0.86960926]
[1746734512880,0.1970536,101480.0,101470.0,0.86960929]
[1746734513581,0.1970536,101480.0,101470.0,0.86960976]
[1746734513779,0.38834109,101480.0,101470.0,0.86960976]
[1746734514281,0.38834109,101480.0,101470.0,0.85420695]
[1746734514887,0.38834109,101480.0,101470.0,0.88072843]
[1746734515280,0.38834109,101480.0,101470.0,0.88072846]
[1746734515676,0.38834109,101480.0,101470.0,0.88072838]
[1746734515973,0.38834109,101480.0,101470.0,0.88072881]
[1746734516581,0.38834109,101480.0,101470.0,0.86532601]
[1746734516774,0.38834109,101480.0,101470.0,0.88072881]
[1746734516976,0.38834109,101480.0,101470.0,0.88070265]
[1746734517377,0.36322538,101480.0,101470.0,0.88070265]
[1746734517576,0.36322538,101480.0,101470.0,0.88070231]
[1746734517977,0.36322538,101480.0,101470.0,1.26070225]
[1746734518377,0.36322538,101480.0,101470.0,1.26051155]
[1746734518587,0.36322538,101480.0,101470.0,1.23401625]
[1746734518783,0.36322538,101480.0,101470.0,1.24511072]
[1746734518975,0.36322538,101480.0,101470.0,1.26051418]
[1746734519176,0.16617178,101480.0,101470.0,1.45346647]
[1746734519383,0.36322538,101480.0,101470.0,1.45346647]
[1746734519882,0.36322538,101480.0,101470.0,1.46874562]
[1746734520386,0.36322538,101480.0,101470.0,1.46920272]
[1746734520678,0.36322538,101480.0,101470.0,1.46920192]
[1746734521380,0.36322538,101480.0,101470.0,1.27624963]
[1746734521685,0.55617767,101480.0,101470.0,0.92658086]
[1746734521883,0.39452538,101480.0,101470.0,0.92658086]
[1746734522082,0.39452538,101480.0,101470.0,0.92657886]
[1746734522284,0.58747767,101480.0,101470.0,0.72950586]
[1746734522585,0.58747767,101480.0,101470.0,0.92657886]
[1746734522782,0.39452538,101480.0,101470.0,0.72950586]
[1746734522983,0.65027767,101480.0,101470.0,0.68110388]
[1746734523185,0.45732538,101480.0,101470.0,0.5015524]
[1746734523385,0.65027767,101480.0,101470.0,0.72558165]
[1746734523888,0.65027767,101480.0,101470.0,0.69489896]
[1746734524588,0.65027767,101480.0,101470.0,0.70983363]
[1746734525190,0.65027767,101480.0,101470.0,0.89302031]
[1746734525382,0.42472538,101480.0,101470.0,0.89302031]
[1746734525576,0.36322538,101480.0,101470.0,1.10166903]
[1746734525778,0.36322538,101480.0,101470.0,1.10213835]
[1746734525983,0.36322538,101480.0,101470.0,0.90918606]
[1746734526178,0.16617178,101480.0,101470.0,1.10213835]
[1746734526383,0.16617178,101480.0,101470.0,1.37213835]
[1746734526687,0.0407229,101480.0,101470.0,1.37204431]
[1746734526892,0.0407229,101480.0,101470.0,1.37204127]
[1746734526893,0.19128749,101480.0,101470.0,1.37204127]
[1746734527093,0.19128749,101480.0,101470.0,1.37204151]
[1746734527393,0.19128749,101480.0,101470.0,1.20404151]
[1746734527588,0.19128749,101480.0,101470.0,1.19404151]
[1746734527891,0.38834109,101480.0,101470.0,0.9956873]
[1746734528085,0.41844109,101480.0,101470.0,0.74131737]
[1746734528391,0.77939338,101480.0,101470.0,0.74131768]
[1746734528591,0.58644109,101480.0,101470.0,0.74131742]
[1746734529388,0.77939338,101480.0,101470.0,0.54424442]
[1746734529593,0.83949338,101480.0,101470.0,0.74131742]
[1746734529798,0.83949338,101480.0,101470.0,0.49774281]
[1746734530089,1.49827679,101480.0,101470.0,0.04179956]
[1746734530896,0.68892879,101480.0,101470.0,0.04179956]
[1746734531087,0.78747679,101480.0,101470.0,0.04179956]
[1746734531287,1.14827679,101480.0,101470.0,0.04179956]
[1746734532490,1.14827679,101480.0,101470.0,0.01146956]
[1746734532696,0.197073,101470.0,101460.0,0.26934223]
[1746734532894,0.45192529,101470.0,101460.0,0.59785543]
[1746734533091,0.61992529,101470.0,101460.0,0.24785543]
[1746734533288,0.61992529,101470.0,101460.0,0.26708223]
[1746734533489,0.61992529,101470.0,101460.0,0.27819433]
[1746734533689,0.61992529,101470.0,101460.0,0.27819431]
[1746734533690,0.426973,101470.0,101460.0,0.27819431]
[1746734533890,0.61992529,101470.0,101460.0,0.27819431]
[1746734534898,0.61992529,101470.0,101460.0,0.6389871]
[1746734535099,0.61992529,101470.0,101460.0,0.66722762]
[1746734535289,0.61992529,101470.0,101460.0,0.65612275]
[1746734535490,0.426973,101470.0,101460.0,0.66722519]
[1746734535794,0.365073,101470.0,101460.0,0.66722613]
[1746734535989,0.365073,101470.0,101460.0,0.68732275]
[1746734536392,0.365073,101470.0,101460.0,0.70210275]
[1746734536592,0.365073,101470.0,101460.0,0.89505504]
[1746734536992,0.365073,101470.0,101460.0,0.92175914]
[1746734537199,0.197073,101470.0,101460.0,0.92175922]
[1746734537697,0.197073,101470.0,101460.0,0.72880693]
[1746734538195,0.365073,101470.0,101460.0,0.72880693]
[1746734538396,0.365073,101470.0,101460.0,0.36800693]
[1746734538601,0.365073,101470.0,101460.0,0.36804883]
[1746734539101,0.365073,101470.0,101460.0,0.35264371]
[1746734539304,0.53121577,101470.0,101460.0,0.35264371]
[1746734539498,0.53121577,101470.0,101460.0,0.71344371]
[1746734539702,0.72416806,101470.0,101460.0,0.32144371]
[1746734539895,0.78666806,101470.0,101460.0,0.06371329]
[1746734540095,0.78666806,101470.0,101460.0,0.0636385]
[1746734540602,1.14666806,101470.0,101460.0,0.0636385]
[1746734540999,0.95371577,101470.0,101460.0,0.05237233]
[1746734541205,1.14666806,101470.0,101460.0,0.05237233]
[1746734541403,1.14666806,101470.0,101460.0,0.24946473]
[1746734541898,0.95371577,101470.0,101460.0,0.24946473]
[1746734542202,0.95371577,101470.0,101460.0,0.28096473]
[1746734542405,0.97886049,101470.0,101460.0,0.28096473]
[1746734543501,1.17181278,101470.0,101460.0,0.08387233]
[1746734543808,1.17181278,101470.0,101460.0,0.28096473]
[1746734544806,1.17181278,101470.0,101460.0,0.11527233]
[1746734544999,1.17181278,101470.0,101460.0,0.31236473]
[1746734545198,0.97886049,101470.0,101460.0,0.31236473]
[1746734545802,0.94646049,101470.0,101460.0,0.86611702]
[1746734545999,0.55636049,101470.0,101460.0,1.47176931]
[1746734546199,0.38836049,101470.0,101460.0,1.08586473]
[1746734546506,0.38836049,101470.0,101460.0,1.27881702]
[1746734546695,0.38836049,101470.0,101460.0,1.09881702]
[1746734546899,0.38836049,101470.0,101460.0,1.14881702]
[1746734547094,0.38836049,101470.0,101460.0,0.90586473]
[1746734547907,0.57856049,101470.0,101460.0,1.29586473]
[1746734548099,0.58656049,101470.0,101460.0,1.11586473]
[1746734549601,0.77951278,101470.0,101460.0,0.91877233]
[1746734549806,0.77951278,101470.0,101460.0,0.70586473]
[1746734549807,0.99656049,101470.0,101460.0,0.70586473]
[1746734550009,1.19918746,101470.0,101460.0,0.70586473]
[1746734550306,1.00623517,101470.0,101460.0,0.70586473]
[1746734551094,0.97383517,101470.0,101460.0,0.70586473]
[1746734551300,0.97383517,101470.0,101460.0,0.89881702]
[1746734551808,0.94363517,101470.0,101460.0,0.89881702]
[1746734552306,0.77563517,101470.0,101460.0,0.89881702]
[1746734552900,0.168,101490.0,101480.0,0.1970536]
[1746734553093,0.2754158,101500.0,101490.0,0.1970341]
[1746734553300,0.68985271,101500.0,101490.0,0.94373868]
[1746734553594,0.68985271,101500.0,101490.0,1.33218639]
[1746734553804,0.68985271,101500.0,101490.0,1.36252639]
[1746734554000,0.68985271,101500.0,101490.0,1.55547868]
[1746734555111,0.68985271,101500.0,101490.0,1.1695741]
[1746734555308,0.68985271,101500.0,101490.0,1.55547868]
[1746734555803,0.68985271,101500.0,101490.0,1.91627868]
[1746734556311,0.68985271,101500.0,101490.0,1.97817868]
[1746734557004,0.68985271,101500.0,101490.0,1.78522639]
[1746734557802,0.101,101500.0,101490.0,1.78522639]
[1746734558002,0.101,101500.0,101490.0,1.81272643]
[1746734559106,0.101,101500.0,101490.0,2.22862643]
[1746734559705,0.101,101500.0,101490.0,1.81272643]
[1746734559898,0.101,101500.0,101490.0,1.61977414]
[1746734560097,0.101,101500.0,101490.0,1.81272643]
[1746734561902,0.101,101500.0,101490.0,2.10420672]
[1746734562102,0.0520223,101500.0,101490.0,2.27220672]
[1746734562405,0.00246,101510.0,101500.0,0.1970147]
[1746734562610,0.00246,101510.0,101500.0,2.86276699]
[1746734562811,0.00246,101510.0,101500.0,2.99268299]
[1746734563213,0.2461351,101560.0,101530.0,0.0492391]
[1746734563506,0.2298983,101560.0,101550.0,0.9185177]
[1746734563712,0.45475059,101560.0,101550.0,0.9185177]
[1746734563904,0.60531518,101560.0,101550.0,0.7216]
[1746734564108,0.60531518,101560.0,101550.0,0.9185177]
[1746734564506,0.2617983,101560.0,101550.0,0.9513177]
[1746734564708,0.41236289,101560.0,101550.0,0.9513177]
[1746734565105,0.41236289,101560.0,101550.0,0.9660877]
[1746734565412,0.38046289,101560.0,101550.0,0.99407439]
[1746734565804,0.41236289,101560.0,101550.0,0.99407439]
[1746734566201,0.41236289,101560.0,101550.0,1.19424934]
[1746734566202,0.38046289,101560.0,101550.0,1.19424934]
[1746734566508,0.38046289,101560.0,101550.0,1.22424934]
[1746734566909,0.38046289,101560.0,101550.0,1.54424934]
[1746734567098,0.38046289,101560.0,101550.0,1.35129705]
[1746734567299,0.34746289,101560.0,101550.0,1.03129705]
[1746734567820,0.38056289,101560.0,101550.0,1.03129705]
[1746734568106,0.41336289,101560.0,101550.0,1.03129705]
[1746734568311,0.2627983,101560.0,101550.0,1.03129705]
[1746734568514,0.38056289,101560.0,101550.0,1.03129705]
[1746734569012,0.38056289,101560.0,101550.0,1.34129705]
[1746734569209,0.57351518,101560.0,101550.0,0.83437935]
[1746734569408,0.63921518,101560.0,101550.0,1.06162705]
[1746734570112,0.80721518,101560.0,101550.0,1.06162705]
[1746734570714,0.80721518,101560.0,101550.0,1.02882705]
[1746734571916,0.61426289,101560.0,101550.0,1.02882705]
[1746734573212,0.61426289,101560.0,101550.0,1.06202705]
[1746734573909,0.61426289,101560.0,101550.0,1.07202705]
[1746734575114,0.61426289,101560.0,101550.0,1.03882705]
[1746734576513,0.61426289,101560.0,101550.0,1.23177934]
[1746734577018,0.61426289,101560.0,101550.0,1.26267934]
[1746734577219,0.44626289,101560.0,101550.0,1.26267934]
[1746734577818,0.44626289,101560.0,101550.0,1.06972705]
[1746734578015,0.44626289,101560.0,101550.0,1.26267934]
[1746734580122,0.44626289,101560.0,101550.0,1.03882705]
[1746734580418,0.63921518,101560.0,101550.0,1.00882705]
[1746734580810,0.44626289,101560.0,101550.0,1.00882705]
[1746734581211,0.61426289,101560.0,101550.0,1.04052705]
[1746734583316,0.61426289,101560.0,101550.0,0.64802705]
[1746734583914,0.61426289,101560.0,101550.0,1.00882705]
[1746734584116,0.61426289,101560.0,101550.0,1.04152705]
[1746734584923,0.68885362,101560.0,101550.0,1.04152705]
[1746734585915,0.68885362,101560.0,101550.0,1.07412705]
[1746734587515,0.68885362,101560.0,101550.0,1.04152705]
[1746734588329,0.68885362,101560.0,101550.0,1.07372705]
[1746734588627,0.88180591,101560.0,101550.0,1.04152705]
[1746734589518,0.68885362,101560.0,101550.0,1.04152705]
[1746734589719,0.68885362,101560.0,101550.0,1.07372705]
[1746734591220,0.07459073,101560.0,101550.0,1.61667934]
[1746734591421,0.07459073,101560.0,101550.0,1.64737934]
[1746734591826,0.50395938,101570.0,101560.0,0.1968983]
[1746734592027,0.53495938,101570.0,101560.0,0.78175059]
[1746734592229,0.85352397,101570.0,101560.0,0.81265059]
[1746734592424,0.75507617,101570.0,101560.0,0.81265059]
[1746734592829,0.75507617,101570.0,101560.0,0.84300059]
[1746734593431,0.29440038,101570.0,101560.0,1.06300059]
[1746734593725,0.49127928,101570.0,101560.0,1.06300059]
[1746734594032,0.29440038,101570.0,101560.0,1.06300059]
[1746734594226,0.12640038,101570.0,101560.0,1.06300059]
[1746734594930,0.12640038,101570.0,101560.0,1.07776059]
[1746734595128,0.19134044,101570.0,101560.0,1.07776059]
[1746734596727,0.19134044,101570.0,101560.0,1.20776059]
[1746734597721,0.19134044,101570.0,101560.0,1.22260601]
[1746734598628,0.19134044,101570.0,101560.0,1.20776059]
[1746734599130,0.35934044,101570.0,101560.0,1.20776059]
[1746734599526,0.70678393,101570.0,101560.0,0.81791]
[1746734599720,0.77256578,101570.0,101560.0,0.43681]
[1746734599921,0.89506578,101570.0,101560.0,0.43681]
[1746734600120,0.89506578,101570.0,101560.0,0.40591]
[1746734600321,1.24352578,101570.0,101560.0,0.40591]
[1746734600520,1.05057349,101570.0,101560.0,0.40591]
[1746734600725,0.80057349,101570.0,101560.0,0.40591]
[1746734600925,0.18977044,101580.0,101570.0,0.1968789]
[1746734601123,0.21197937,101580.0,101570.0,1.20533119]
[1746734601331,0.21197937,101580.0,101570.0,1.30377919]
[1746734602126,0.04397937,101580.0,101570.0,1.45377919]
[1746734602724,0.04397937,101580.0,101570.0,1.2608269]
[1746734602923,0.04397937,101580.0,101570.0,1.45377919]
[1746734604127,0.07508607,101590.0,101580.0,0.3444954]
[1746734604319,0.07508607,101590.0,101580.0,1.38454769]
[1746734605236,0.07508607,101590.0,101580.0,1.48298769]
[1746734605534,0.07508607,101590.0,101580.0,1.1915954]
[1746734605729,0.07508607,101590.0,101580.0,1.162382]
[1746734605926,0.10758607,101590.0,101580.0,1.162382]
[1746734606125,0.13898607,101590.0,101580.0,1.162382]
[1746734606322,0.28955066,101590.0,101580.0,1.162382]
[1746734607030,0.28955066,101590.0,101580.0,1.35533429]
[1746734607231,0.45755066,101590.0,101580.0,1.35533429]
[1746734607428,0.38246459,101590.0,101580.0,1.35533429]
[1746734607634,0.38246459,101590.0,101580.0,1.162382]
[1746734608133,0.21446459,101590.0,101580.0,1.162382]
[1746734608734,0.18306459,101590.0,101580.0,1.162382]
[1746734609033,0.18306459,101590.0,101580.0,1.35533429]
[1746734609233,0.35106459,101590.0,101580.0,1.35533429]
[1746734609534,0.35106459,101590.0,101580.0,1.162382]
[1746734610437,0.35106459,101590.0,101580.0,1.142382]
[1746734610639,0.35106459,101590.0,101580.0,1.312382]
[1746734611134,0.38156459,101590.0,101580.0,1.202382]
[1746734611626,0.41196459,101590.0,101580.0,1.202382]
[1746734612024,0.38146459,101590.0,101580.0,1.39533429]
[1746734612229,0.31856459,101590.0,101580.0,1.202382]
[1746734612430,0.31856459,101590.0,101580.0,1.49533429]
[1746734613232,0.15056459,101590.0,101580.0,1.49533429]
[1746734613634,0.1623,101600.0,101590.0,0.1968402]
[1746734613931,0.31286459,101600.0,101590.0,0.9093402]
[1746734614139,0.48086459,101600.0,101590.0,0.9093402]
[1746734615344,0.3303,101600.0,101590.0,0.9093402]
[1746734615641,0.48086459,101600.0,101590.0,0.9093402]
[1746734616539,0.67768539,101600.0,101590.0,0.9396902]
[1746734616941,0.48086459,101600.0,101590.0,0.9396902]
[1746734617334,0.67768539,101600.0,101590.0,0.9396902]
[1746734617731,0.48086459,101600.0,101590.0,0.9544502]
[1746734617944,0.67768539,101600.0,101590.0,0.9544502]
[1746734618144,0.48086459,101600.0,101590.0,0.9544502]
[1746734618441,0.67768539,101600.0,101590.0,0.6644502]
[1746734618838,0.67768539,101600.0,101590.0,0.9244502]
[1746734619139,0.87063768,101600.0,101590.0,0.6027502]
[1746734619335,0.94572375,101600.0,101590.0,0.6339502]
[1746734619743,0.55595066,101600.0,101590.0,0.6339502]
[1746734619945,0.75277146,101600.0,101590.0,0.6656502]
[1746734622643,0.75277146,101600.0,101590.0,0.6339502]
[1746734623141,0.67768539,101600.0,101590.0,0.6339502]
[1746734625638,0.87063768,101600.0,101590.0,0.43711]
[1746734625840,0.87063768,101600.0,101590.0,0.6027502]
[1746734626238,0.87063768,101600.0,101590.0,0.40591]
[1746734626545,1.03646044,101600.0,101590.0,0.40591]
[1746734626942,1.03646044,101600.0,101590.0,0.43741]
[1746734628550,0.84350815,101600.0,101590.0,0.43741]
[1746734628848,1.03646044,101600.0,101590.0,0.43741]
[1746734629942,0.86833578,101600.0,101590.0,0.43741]
[1746734630141,1.06128807,101600.0,101590.0,0.43741]
[1746734631750,1.06128807,101600.0,101590.0,0.6342502]
[1746734632754,0.86833578,101600.0,101590.0,0.6342502]
[1746734633047,1.06128807,101600.0,101590.0,0.6342502]
[1746734633450,0.91131699,101600.0,101590.0,0.6342502]
[1746734635452,0.91131699,101600.0,101590.0,0.43741]
[1746734635750,0.91131699,101600.0,101590.0,0.40591]
[1746734636649,0.91131699,101600.0,101590.0,0.43791]
[1746734638352,0.91131699,101600.0,101590.0,0.6347502]
[1746734639162,0.91131699,101600.0,101590.0,0.43791]
[1746734640157,0.91131699,101600.0,101590.0,0.6347502]
[1746734640453,0.7183647,101600.0,101590.0,0.6347502]
[1746734640648,0.91131699,101600.0,101590.0,0.6347502]
[1746734641055,0.91131699,101600.0,101590.0,0.04511]
[1746734641245,0.1968596,101580.0,101570.0,0.3608]
[1746734641451,0.54037648,101580.0,101570.0,0.3911]
[1746734641650,0.60397648,101580.0,101570.0,0.3608]
[1746734642357,0.96492877,101580.0,101570.0,0.3608]
[1746734642561,1.18197648,101580.0,101570.0,0.3608]
[1746734644457,1.37492877,101580.0,101570.0,0.3608]
[1746734644656,0.1968789,101570.0,101560.0,0.3911]
[1746734644856,0.63459578,101570.0,101560.0,0.3608]
[1746734645252,0.89259578,101570.0,101560.0,0.3608]
[1746734645557,0.1968983,101560.0,101550.0,0.37802266]
[1746734645761,0.60331518,101560.0,101550.0,0.37802266]
[1746734646164,0.77131518,101560.0,101550.0,0.37802266]
[1746734646359,0.77131518,101560.0,101550.0,0.40962266]
[1746734647052,0.57836289,101560.0,101550.0,0.60654036]
[1746734647247,0.77131518,101560.0,101550.0,0.60654036]
[1746734647452,0.77131518,101560.0,101550.0,0.60954036]
[1746734647860,0.77131518,101560.0,101550.0,0.60654036]
[1746734648456,0.77131518,101560.0,101550.0,0.24574036]
[1746734648659,0.77131518,101560.0,101550.0,0.60654036]
[1746734649162,0.60331518,101560.0,101550.0,0.60654036]
[1746734650067,0.41036289,101560.0,101550.0,0.60654036]
[1746734650761,0.60331518,101560.0,101550.0,0.60654036]
[1746734651661,0.41036289,101560.0,101550.0,0.60654036]
[1746734651960,0.41036289,101560.0,101550.0,0.04882266]
[1746734652161,0.57836289,101560.0,101550.0,0.60654036]
[1746734652462,0.57836289,101560.0,101550.0,0.04882266]
[1746734652761,0.77131518,101560.0,101550.0,0.04882266]
[1746734652961,0.77131518,101560.0,101550.0,0.60654036]
[1746734653550,0.57836289,101560.0,101550.0,0.60654036]
[1746734653754,0.77131518,101560.0,101550.0,0.40962266]
[1746734654364,0.77131518,101560.0,101550.0,0.37802266]
[1746734654555,1.12705117,101560.0,101550.0,0.37802266]
[1746734654751,1.77927146,101560.0,101550.0,0.01]
[1746734654960,1.58631917,101560.0,101550.0,0.01]
[1746734655160,1.77927146,101560.0,101550.0,0.01]
[1746734655359,0.1969371,101540.0,101530.0,0.3937]
[1746734655664,0.54045398,101540.0,101530.0,0.3937]
[1746734655864,0.60325398,101540.0,101530.0,0.3937]
[1746734656164,0.86974198,101540.0,101530.0,0.3608]
[1746734656365,0.86974198,101540.0,101530.0,0.3638]
[1746734657160,1.21974198,101540.0,101530.0,0.3638]
[1746734657554,1.12125398,101540.0,101530.0,0.3668]
[1746734658461,1.51415398,101540.0,101530.0,0.006]
[1746734658654,1.73919089,101540.0,101530.0,0.006]
[1746734662065,1.5462386,101540.0,101530.0,0.006]
[1746734662263,1.73919089,101540.0,101530.0,0.006]
[1746734663668,1.67994581,101540.0,101530.0,0.006]
[1746734664566,1.67994581,101540.0,101530.0,0.0382]
[1746734665571,1.68240581,101540.0,101530.0,0.0382]
[1746734666264,1.32160581,101540.0,101530.0,0.0382]
[1746734666472,1.68240581,101540.0,101530.0,0.0382]
[1746734666966,1.32160581,101540.0,101530.0,0.0382]
[1746734667772,1.15581398,101540.0,101530.0,0.0382]
[1746734668370,1.51661398,101540.0,101530.0,0.0382]
[1746734671371,0.3981971,101540.0,101530.0,0.5959565]
[1746734671576,0.3673971,101540.0,101530.0,0.85260879]
[1746734671875,0.3673971,101540.0,101530.0,0.6596565]
[1746734672266,0.1993971,101540.0,101530.0,0.8276565]
[1746734675175,0.37434397,101540.0,101530.0,0.8276565]
[1746734678177,0.37434397,101540.0,101530.0,1.1884565]
[1746734678579,0.27437433,101540.0,101530.0,1.1884565]
[1746734681366,0.27437433,101540.0,101530.0,1.82989678]
[1746734681367,0.07743723,101540.0,101530.0,1.82989678]
[1746734681565,0.07743723,101540.0,101530.0,2.14489895]
[1746734681777,0.07743723,101540.0,101530.0,1.89489895]
[1746734681973,0.27437433,101540.0,101530.0,1.89489895]
[1746734682180,0.27437433,101540.0,101530.0,1.5884565]
[1746734682681,0.27437433,101540.0,101530.0,1.1884565]
[1746734684083,0.27437433,101540.0,101530.0,1.3484565]
[1746734684583,0.27437433,101540.0,101530.0,1.1884565]
[1746734686384,0.1993971,101540.0,101530.0,1.1884565]
[1746734687184,0.1993971,101540.0,101530.0,1.38140879]
[1746734687785,0.1993971,101540.0,101530.0,1.1884565]
[1746734689185,0.38206169,101540.0,101530.0,1.1884565]
[1746734689379,0.41556169,101540.0,101530.0,1.1884565]
[1746734689579,0.38206169,101540.0,101530.0,1.1884565]
[1746734691582,0.38206169,101540.0,101530.0,1.38140879]
[1746734691785,0.41466169,101540.0,101530.0,1.38140879]
[1746734692087,0.41466169,101540.0,101530.0,1.1884565]
[1746734692889,0.38206169,101540.0,101530.0,1.38140879]
[1746734693591,0.34996169,101540.0,101530.0,1.38140879]
[1746734694389,0.42493892,101540.0,101530.0,1.38140879]
[1746734695288,0.42493892,101540.0,101530.0,1.39667677]
[1746734699288,0.07743723,101540.0,101530.0,1.39667677]
[1746734699492,0.07743723,101540.0,101530.0,1.79667677]
[1746734700991,0.04177043,101540.0,101530.0,1.89516476]
[1746734701192,0.09996964,101550.0,101540.0,0.1969371]
[1746734701394,0.0654319,101550.0,101540.0,1.71198168]
[1746734701585,0.0654319,101550.0,101540.0,3.11750939]
[1746734702089,0.0654319,101550.0,101540.0,3.28550939]
[1746734702289,0.0654319,101550.0,101540.0,3.28650939]
[1746734702590,0.0654319,101560.0,101550.0,0.1969177]
[1746734702791,0.0654319,101560.0,101550.0,1.59102228]
[1746734702991,0.0654319,101560.0,101550.0,1.68949028]
[1746734703186,0.0654319,101560.0,101550.0,1.87228058]
[1746734703591,0.0654319,101560.0,101550.0,1.87226847]
[1746734703993,0.0654319,101560.0,101550.0,1.87226842]
[1746734705096,0.0654319,101560.0,101550.0,1.85749028]
[1746734705994,0.12749875,101570.0,101560.0,0.1968983]
[1746734706205,0.10978841,101580.0,101570.0,0.1968789]
[1746734706402,0.10978841,101580.0,101570.0,1.41553119]
[1746734706898,0.10978841,101580.0,101570.0,2.91553119]
[1746734707197,0.10978841,101580.0,101570.0,3.08353119]
[1746734707397,0.10978841,101580.0,101570.0,3.09354885]
[1746734707700,0.45329047,101590.0,101580.0,0.1968596]
[1746734707901,0.60385506,101590.0,101580.0,1.19291189]
[1746734708102,0.60385506,101590.0,101580.0,1.36091189]
[1746734709100,0.55464396,101590.0,101580.0,1.36091189]
[1746734710192,0.50543126,101590.0,101580.0,1.36842726]
[1746734711501,0.50543126,101590.0,101580.0,1.17547497]
[1746734711704,0.50543126,101590.0,101580.0,1.36842726]
[1746734712197,0.38030479,101590.0,101580.0,1.36842726]
[1746734712703,0.38030479,101590.0,101580.0,1.72922726]
[1746734714504,0.18346459,101590.0,101580.0,1.72922726]
[1746734714699,0.21616459,101590.0,101580.0,1.72922726]
[1746734715098,0.18346459,101590.0,101580.0,1.72922726]
[1746734715294,0.15056459,101590.0,101580.0,1.92217955]
[1746734716305,0.15056459,101590.0,101580.0,1.93756343]
[1746734717406,0.13636,101600.0,101590.0,0.1968402]
[1746734717605,0.28692459,101600.0,101590.0,1.21297637]
[1746734717901,0.10246,101600.0,101590.0,1.21297637]
[1746734718102,0.10246,101600.0,101590.0,1.45559249]
[1746734718402,0.10246,101600.0,101590.0,1.47097412]
[1746734719000,0.10246,101600.0,101590.0,1.38097412]
[1746734719195,0.05735,101600.0,101590.0,1.55097412]
[1746734719394,0.3946655,101630.0,101620.0,0.1967821]
[1746734719597,0.3612655,101630.0,101620.0,0.9183821]
[1746734719807,0.51183009,101630.0,101620.0,0.9183821]
[1746734720308,0.51183009,101630.0,101620.0,0.9496821]
[1746734721507,0.51183009,101630.0,101620.0,0.95991702]
[1746734721699,0.70478238,101630.0,101620.0,0.7216]
[1746734721900,0.1967821,101620.0,101610.0,0.5342]
[1746734722100,0.57279898,101620.0,101610.0,0.5342]
[1746734722607,0.1968014,101610.0,101600.0,0.5576208]
[1746734722800,0.60471828,101610.0,101600.0,0.5576208]
[1746734722997,0.60471828,101610.0,101600.0,0.56756155]
[1746734723897,0.41176599,101610.0,101600.0,0.3608]
[1746734724204,0.60471828,101610.0,101600.0,0.5576208]
[1746734724509,0.60471828,101610.0,101600.0,0.5893208]
[1746734725500,0.60471828,101610.0,101600.0,0.60670402]
[1746734725907,0.41176599,101610.0,101600.0,0.60670402]
[1746734726099,0.2612014,101610.0,101600.0,0.60670402]
[1746734726297,0.2612014,101610.0,101600.0,0.63730402]
[1746734727109,0.60471828,101610.0,101600.0,0.60670402]
[1746734727698,0.41176599,101610.0,101600.0,0.61686967]
[1746734727893,0.79767057,101610.0,101600.0,0.58516967]
[1746734728105,0.60471828,101610.0,101600.0,0.58516967]
[1746734728303,0.60471828,101610.0,101600.0,0.58516911]
[1746734728905,0.60471828,101610.0,101600.0,0.58516983]
[1746734729302,0.60471828,101610.0,101600.0,0.60308645]
[1746734730212,0.60471828,101610.0,101600.0,0.61846888]
[1746734730510,0.60471828,101610.0,101600.0,0.61846871]
[1746734732411,0.41176599,101610.0,101600.0,0.61846852]
[1746734734305,0.44266599,101610.0,101600.0,0.65036852]
[1746734735305,0.63561828,101610.0,101600.0,0.61846852]
[1746734735714,0.44266599,101610.0,101600.0,0.61846852]
[1746734736009,0.63561828,101610.0,101600.0,0.61846852]
[1746734736311,0.63561828,101610.0,101600.0,0.3883492]
[1746734736507,1.28779057,101610.0,101600.0,0.002]
[1746734736810,1.37779057,101610.0,101600.0,0.002]
[1746734737008,1.68779057,101610.0,101600.0,0.002]
[1746734737314,0.1968208,101600.0,101590.0,0.3608]
[1746734737515,0.60543768,101600.0,101590.0,0.3608]
[1746734738215,0.77343768,101600.0,101590.0,0.3608]
[1746734738813,0.87186968,101600.0,101590.0,0.3608]
[1746734739306,0.72130509,101600.0,101590.0,0.3608]
[1746734739511,0.87186968,101600.0,101590.0,0.3608]
[1746734739709,0.58048539,101600.0,101590.0,0.5576402]
[1746734739908,0.58048539,101600.0,101590.0,0.5885402]
[1746734740217,0.2619208,101600.0,101590.0,0.81379249]
[1746734741111,0.2619208,101600.0,101590.0,0.80422401]
[1746734742310,0.2619208,101600.0,101590.0,0.6208402]
[1746734742511,0.60543768,101600.0,101590.0,0.60392555]
[1746734742813,0.60543768,101600.0,101590.0,0.40708535]
[1746734743009,0.60543768,101600.0,101590.0,0.60392563]
[1746734743216,0.60543768,101600.0,101590.0,0.5885402]
[1746734743516,0.60543768,101600.0,101590.0,0.60392503]
[1746734743913,0.60543768,101600.0,101590.0,0.40708483]